Cogmind - Beta 17 *** ADVENTURER MODE // 2026.07.28 @ 10:58:32 Player: Man of Plasma Result: Smashed by cave-in Performance ------------- Evolutions (0) 0 Regions Visited (2) 400 Robots Destroyed (22) 110 Value Destroyed (609) 609 Prototype IDs (0) 0 Alien Tech Used (0) 0 Bonus (0) 0 TOTAL SCORE: 1119 Bonus ------- None Cogmind --------- Core Integrity 0/250 Matter 254/300 Energy 83/100 System Corruption 0% Temperature Cool (0) Movement Treading (160) Location -10/Subcaves Parts ------- > --- POWER (1) -------- (None) > --- PROPULSION (2) --- Light Treads Light Treads > --- UTILITY (2) ------ Large Storage Unit Subdweller Optics > --- WEAPON (2) ------- Subdweller Laser Subdweller Machine Gun > --- INVENTORY (15) --- Subdweller Power Source Subdweller Power Source Subdweller Power Source Light Nuclear Core Subdweller Monowheel Subdweller Monowheel High-capacity Matter Pod (200) Visual Processing Unit Subdweller Optics Sensor Array Light Assault Rifle Subdweller Machine Gun Datajack Mining Laser Peak State ------------ > --- POWER ------------ Subdweller Power Source > --- PROPULSION ------- Light Treads Light Treads > --- UTILITY ---------- Large Storage Unit Subdweller Optics > --- WEAPON ----------- Subdweller Beam Cannon Subdweller Machine Gun > --- INVENTORY -------- Light Ion Engine Light Nuclear Core Light Treads Subdweller Monowheel High-capacity Matter Pod Visual Processing Unit Subdweller Optics Sensor Array Signal Interpreter Light Assault Rifle Grenade Launcher Datajack Mining Laser Scrap Shield Fragment Scrap Shield Fragment [Rating: 13] Favorites ----------- Power Ion Engine Engine Ion Engine Propulsion Light Treads Treads Light Treads Utility Large Storage Unit Device Subdweller Optics Storage Large Storage Unit Weapon Assault Rifle Energy Gun Medium Laser Energy Cannon Subdweller Beam Cannon Ballistic Gun Assault Rifle Launcher Grenade Launcher Build | -11 -10 -10 ------- Run | Yrd Mat Sub Slots Evolved . | . . . Power . | . . . Propulsion . | . . . Utility . | . . . Weapon . | . . . Parts Attached 18 | 6 4 8 Power 3 | 1 . 2 Engine 3 | 1 . 2 Core . | . . . Reactor . | . . . Propulsion 4 | 2 1 1 Treads 4 | 2 1 1 Leg . | . . . Wheel . | . . . Hover . | . . . Flight . | . . . Utility 3 | 1 1 1 Device 1 | . . 1 Storage 2 | 1 1 . Processor . | . . . Hackware . | . . . Protection . | . . . Artifact . | . . . Weapon 8 | 2 2 4 Energy Gun 3 | 1 1 1 Energy Cannon 1 | . . 1 Ballistic Gun 3 | 1 . 2 Ballistic Cannon . | . . . Launcher 1 | . 1 . Special Weapon . | . . . Impact Weapon . | . . . Slashing Weapon . | . . . Piercing Weapon . | . . . Special Melee Weapon . | . . . Unidentified Prototypes . | . . . Parts Lost 6 | . . 6 Power 2 | . . 2 Propulsion 1 | . . 1 Utility . | . . . Weapon 3 | . . 3 Highest Loss Streak 3 | . . 3 To Critical Strikes . | . . . Average Backups 9 | . 8 13 Power 1 | . 1 2 Propulsion 1 | . . 1 Utility 3 | . 2 4 Weapon 2 | . 2 3 Tool/Special . | . . . Unused Backups 13 | . . 13 Power 3 | . . 3 Propulsion 2 | . . 2 Utility 5 | . . 5 Weapon 2 | . . 2 Tool/Special 1 | . . 1 Average Slot Usage (%) 98 | . 99 97 Engine 13 | . 14 12 Treads 27 | . 28 27 Device 3 | . . 10 Storage 23 | . 27 17 Energy Gun 10 | . 14 3 Energy Cannon 1 | . . 5 Ballistic Gun 13 | . 13 13 Launcher 2 | . . 5 Peak Build Rating 13 | 6 9 13 Average Rating 8 | 4 7 11 On Entrance 5 | . 6 9 Avg Prop Armor Cover (%) . | . . . Naked Turns . | . . . Heaviest Build 42 | 14 35 42 Greatest Support 40 | 40 40 40 Greatest Overweight (x) 1 | . . 1 Average Overweight (x) . | . . . Largest Inventory Capacity 15 | 8 15 15 Average Capacity 14 | 7 14 15 Most Carried 15 | 2 12 15 Average Carried 9 | . 8 14 Final Capacity 15 | 8 15 15 Final Carried 14 | 2 12 14 Class Distribution -------------------- 85% | Mutant 14% | Scavenger-Mutant Dominant Class ---------------- Mutant | -10/Materials Mutant | -10/Subcaves Resources | -11 -10 -10 ----------- Run | Yrd Mat Sub Matter Collected 757 | 263 309 185 Remotely . | . . . Salvage Created 711 | 56 370 285 Parts 44 | 2 23 19 Haulers Intercepted 1 | . 1 . Recyclers Shooed . | . . . Parts Field Recycled . | . . . Retrieved Matter . | . . . Parts Self-Destructed 4 | . . 4 Prevented . | . . . Parts Restored . | . . . Kills | -11 -10 -10 ------- Run | Yrd Mat Sub Combat Hostiles Destroyed 16 | . 8 8 Guns 10 | . 5 5 AOE 6 | . 3 3 Classes Destroyed 7 | 1 5 1 Tunneler 1 | . 1 . Hauler 1 | . 1 . Recycler 1 | 1 . . Watcher 3 | . 3 . Swarmer 3 | . 3 . Grunt 5 | . 5 . Subdweller 8 | . . 8 Best Kill Streak 4 | 1 4 3 Combat Bots Only 3 | . 3 3 Max Kills in Single Turn 4 | 1 4 1 Gunslinging 1 | . 1 . Exploded 3 | . 3 1 Melee . | . . . Uniques/NPCs Destroyed . | . . . Combat | -11 -10 -10 -------- Run | Yrd Mat Sub Hostile Shots Fired 83 | . 29 54 Missed 19 | . 8 11 Hits 64 | . 21 43 Projectile 64 | . 21 43 Critical Strikes 4 | . . 4 Damage Taken 1273 | . 250 1023 Core 254 | . 18 236 Absorbed by Shields . | . . . Ignored by Resistances 322 | . 72 250 Regen/Repaired (Parts) 98 | . 98 . Core Remaining (%) 100 | 100 . . Volleys Fired 68 | 1 27 40 Largest 2 | 2 2 2 Hottest 145 | 70 85 145 Shots Fired 129 | 2 54 73 Gun 112 | 2 53 57 Cannon 8 | . . 8 Launcher 9 | . 1 8 Special . | . . . Kinetic 64 | 1 26 37 Thermal 56 | 1 27 28 Explosive 9 | . 1 8 Electromagnetic . | . . . Robot Hit Streak 52 | 2 15 52 Robot Miss Streak 2 | . 2 1 Penetration Max . | . . . Secondary Targets 1 | . 1 . Max Gunslinging Chain 1 | . 1 . Shots Hit Robots 97 | 2 40 55 Core Hits 38 | 2 21 15 Critical Kills 1 | . . 1 Critical Parts Destroyed . | . . . Critical Strikes 5 | . 4 1 Burn 4 | . 4 . Destroy 1 | . . 1 Melee Attacks . | . . . Impact . | . . . Slashing . | . . . Piercing . | . . . Sneak Attacks . | . . . Combat Hostiles . | . . . Follow-up Attacks . | . . . Damage Inflicted 1801 | 27 650 1124 Guns 1123 | 27 497 599 Cannons 55 | . . 55 Explosions 612 | . 153 459 Melee . | . . . Ramming 11 | . . 11 Kinetic 549 | 14 206 329 Thermal 629 | 13 291 325 Explosive 612 | . 153 459 Electromagnetic . | . . . Impact . | . . . Slashing . | . . . Piercing . | . . . Highest Corruption . | . . . Average Corruption . | . . . Corruption Purged . | . . . Corruption Blocked . | . . . Overload Shots . | . . . Overflow Damage 13 | . . 13 Projectiles . | . . . Explosions 13 | . . 13 Melee . | . . . Knockbacks . | . . . Impact . | . . . Kinetic . | . . . Secondary . | . . . Self-Inflicted Damage 89 | . . 89 Shots 3 | . . 3 Rammed 6 | . . 6 Targets Rammed 6 | . . 6 Kicked . | . . . Crushed . | . . . Highest Temperature 225 | 9 103 225 Average Temperature 52 | 6 31 106 Received Heat Transfer 1086 | . 144 942 Effects 2 | . . 2 Interference 2 | . . 2 Siege Activations . | . . . Martial Activations . | . . . Shielding Activations . | . . . Robots Disrupted . | . . . Combat Hostiles . | . . . Robots Corrupted . | . . . Combat Hostiles . | . . . Parts Fried . | . . . Impact Corruptions . | . . . Robots Melted . | . . . Combat Hostiles . | . . . Parts Melted 2 | . 1 1 Heat Transferred 1753 | 37 1110 606 Parts Sabotaged . | . . . Parts Stolen . | . . . Parts Stripped . | . . . Power Chain Reactions . | . . . Alert | -11 -10 -10 ------- Run | Yrd Mat Sub Maximum Alert Level . | . . . Low Security (%) 100 | 100 100 . Level 1 . | . . . Level 2 . | . . . Level 3 . | . . . Level 4 . | . . . Level 5 . | . . . High Security . | . . . Max Security . | . . . Peak Influence 99 | 5 99 . Initial 2 | . 2 . Average 19 | . 20 . Influence Increases 262 | 5 257 . Destroy 0b10 Robot/C 160 | . 160 . Destroy 0b10 Robot/NC 30 | 5 25 . Destroy Leader 48 | . 48 . Successful Hack 20 | . 20 . Destroy Structure 4 | . 4 . Influence Decreases 262 | . 262 . Entered New Map 3 | . 3 . Time Decay 259 | . 259 . Squads Dispatched 1 | . 1 . Investigation 1 | . 1 . Extermination . | . . . Reinforcement . | . . . Assault . | . . . Garrison . | . . . Intercept . | . . . Searches Triggered . | . . . Construction Impeded . | . . . Haulers Reinforced . | . . . Active Scanning Responses . | . . . Cargo Convoy Interrupts . | . . . Stealth | -11 -10 -10 --------- Run | Yrd Mat Sub Distress Signals . | . . . Communications Jammed . | . . . Distress Signals . | . . . Times Spotted 20 | . 11 9 Peak Tracking Total 4 | . 4 2 Tactical Retreats . | . . . Traps | -11 -10 -10 ------- Run | Yrd Mat Sub Traps Triggered 2 | . 2 . Indirectly . | . . . Trap Hack Attempts . | . . . Triggered . | . . . Disarmed . | . . . Reprogrammed . | . . . Reused . | . . . Traps Extracted . | . . . Installed . | . . . Triggered . | . . . Machines | -11 -10 -10 ---------- Run | Yrd Mat Sub Machines Disabled . | . . . Max in Single Turn . | . . . Machines Repaired . | . . . Machines Dismantled . | . . . Machines Sabotaged . | . . . Overloaded Fab Kills . | . . . Hacking | -11 -10 -10 --------- Run | Yrd Mat Sub Machines Accessed 6 | . 6 . Terminals 5 | . 5 . Fabricators . | . . . Repair Stations 1 | . 1 . Recycling Units . | . . . Scanalyzers . | . . . Garrison Access . | . . . Total Hacks 16 | . 16 . Successful 8 | . 8 . Failed 8 | . 8 . Catastrophic 1 | . 1 . Database Lockouts . | . . . Manual 17 | . 17 . Terminals 13 | . 13 . Fabricators . | . . . Repair Stations 3 | . 3 . Recycling Units . | . . . Scanalyzers . | . . . Garrison Access . | . . . Terminal Hacks 3 | . 3 . Robot Analysis 2 | . 2 . Alert Level 1 | . 1 . Fabricator Hacks . | . . . Repair Station Hacks 2 | . 2 . Scan Component 1 | . 1 . Repair 1 | . 1 . Recycling Unit Hacks . | . . . Scanalyzer . | . . . Garrison Access Hacks . | . . . Unauthorized Hacks 3 | . 3 . Terminals 3 | . 3 . Assimilate 1 | . 1 . Botnet 2 | . 2 . Fabricators . | . . . Repair Stations . | . . . Recycling Units . | . . . Scanalyzers . | . . . Garrison Access . | . . . Data Cores Recovered . | . . . Used . | . . . Hacking Detections 5 | . 5 . Full Trace Events . | . . . Feedback Events . | . . . Feedback Blocked . | . . . Robot Schematics Acquired . | . . . Robots Built . | . . . Authchips . | . . . Time . | . . . Total Robot Build Rating . | . . . Part Schematics Acquired . | . . . Parts Built . | . . . Authchips . | . . . Time . | . . . Total Part Build Rating . | . . . Part Studies Acquired . | . . . Parts Repaired 1 | . 1 . Time 26 | . 26 . Parts Recycled . | . . . Recycled Matter . | . . . Retrieved Matter . | . . . Retrieved Components . | . . . Parts Scanalyzed . | . . . Part Schematics Acquired . | . . . Parts Damaged . | . . . Bothacking | -11 -10 -10 ------------ Run | Yrd Mat Sub Used RIF Installer . | . . . Robots Hacked . | . . . Non-combat . | . . . Combat . | . . . Robot Hacks Applied . | . . . Relay Couplers Released . | . . . Fabnet Peak Effective % . | . . . Robots Rewired . | . . . Allies Hacked . | . . . Hacks Repelled . | . . . Allies | -11 -10 -10 -------- Run | Yrd Mat Sub Total Allies . | . . . Largest Group . | . . . Highest-Rated Group . | . . . Highest-Rated Ally . | . . . Total Orders . | . . . Ally Attacks . | . . . Total Damage . | . . . Kills . | . . . Allies Corrupted . | . . . Allies Melted . | . . . Intel | -11 -10 -10 ------- Run | Yrd Mat Sub Active Infowar (turns) 380 | . . 380 Optics 380 | . . 380 Robot Analysis Total 2 | . 2 . Derelict Logs Recovered 2 | . . 2 Drone Launches . | . . . Drone Recoveries . | . . . Exploration | -11 -10 -10 ------------- Run | Yrd Mat Sub Turns Passed 1884 | 76 1151 657 Spaces Moved 968 | 42 625 301 Core 4 | 4 . . Treads 964 | 38 625 301 Legs . | . . . Wheels . | . . . Hover . | . . . Flight . | . . . Fastest Speed 50 | 50 160 160 Average Speed 160 | 149 160 164 Slowest Speed 240 | 160 160 240 Overloaded Moves . | . . . Propulsion Burnouts . | . . . Robots Hopped . | . . . Potential Cave-ins . | . . . Cave-ins Triggered 1 | . . 1 Exploration Rate (%) 38 | 4 82 28 Regions Visited 2 Branch Regions 1 Pre-discovered Areas . | . . . Known Exits Taken . | . . . Unknown Exits Taken 2 | 1 1 . Scrap Searched . | . . . Spaces Dug 2 | . . 2 Terrain Destroyed 35 | . 4 31 Melee . | . . . Projectile 4 | . . 4 AOE 31 | . 4 27 Terrain Rammed . | . . . Walls Destroyed . | . . . Machines Disabled . | . . . Actions | -11 -10 -10 --------- Run | Yrd Mat Sub Total 1169 | 50 720 399 Wait 64 | . 53 11 Move 966 | 41 624 301 Hop . | . . . Pick Up 30 | 2 10 18 Fast Attach 9 | 6 1 2 Attach 4 | . . 4 Detach . | . . . Swap 8 | . 4 4 Drop 14 | . 1 13 Fire 68 | 1 27 40 Melee . | . . . Ram . | . . . Kick . | . . . Crush 6 | . . 6 Escape Stasis . | . . . Rewire . | . . . Trap . | . . . Miscellaneous . | . . . Route ------- -11/Scrapyard -10/Materials (discovered 6 exits: [*Mat x3] / [*Min x2] / [*Sub]) -10/Subcaves History --------- Turn | Location | Event 29 | -11/Scrapyard | Discovered new exit (range 14) 77 | -11/Scrapyard | Entered Materials 283 | -10/Materials | Discovered new exit (range 8) 313 | -10/Materials | Build established: Mutant 387 | -10/Materials | Discovered new exit (range 7) 447 | -10/Materials | Discovered new exit (range 15) 642 | -10/Materials | Discovered new exit (range 6) 794 | -10/Materials | Discovered new exit (range 16) 872 | -10/Materials | Discovered new exit (range 8) 1209 | -10/Materials | Repaired Lgt. Treads 1228 | -10/Materials | Entered Subcaves 1264 | -10/Subcaves | Learned location of 1 exit from Materials 1331 | -10/Subcaves | Lost 3 parts (1p1n1w) 1344 | -10/Subcaves | Core integrity fell below 50% 1886 | -10/Subcaves | Crushed by falling debris 1886 | -10/Subcaves | Smashed by cave-in Last Messages --------------- 01708_ Acquired 27 matter. 01711_ Acquired Sub. Monowheel. 01714_ Acquired Sub. Laser. 01754_ Sub. Optics shoots sparks and powers down. 01825_ KR-R71(u) tweaks Twisted Machinery. 01857_ Critical hit (Meltdown: +230). 01860_ Grenade Launcher destroyed. 01860_ Destroyed Grenade Launcher. 01866_ The unstable cave ceiling collapses. 01867_ C4-RJX(R) affixes Scrap Shield Fragment to Scrap Shield. 01873_ GX-L34(R) affixes Scrap Shield Fragment to Scrap Shield. 01876_ Lgt. Ion Engine destroyed. 01881_ GX-L34(R) destroyed. 01884_ C4-RJX(R) affixes Scrap Shield Fragment to Scrap Shield. 01886_ The unstable cave ceiling collapses. 01886_ Crushed by falling debris. Map ----- +----------------------------------------------------+ | | | | | | | | | | | | | | | | | ?????????????????????????????????????????????????? | | ?????????????????????????????????????????????????? | | ?????????????????????????????????????????????????? | | ?????????????????????????????????????????????????? | | ?????????????????????????????????????????????????? | | ?????????????????????????????????????????????????? | | ?????????????????????????#########???????????????? | | ???????????????????##????"< $ $????????????????? | | ???????????????????#< ?"?" $ ????????????????? | | ???????????????????# <<